Cogmind - Beta 9.3 @@@ ROGUE MODE // 2019.12.21 @ 23:02:35 Player: Joel Result: Destroyed by as-74731 with Assembled Heavy Rifle Performance ------------- Evolutions (0) 0 Regions Visited (2) 400 Robots Destroyed (23) 115 Value Destroyed (289) 289 Prototype IDs (2) 40 Alien Tech Used (0) 0 Bonus (3) 3 TOTAL SCORE: 847 Bonus ------- Follower Combat Kills 21 Friendly Fire -18 Cogmind --------- Core Integrity 0/250 Matter 230/300 Energy 85/100 System Corruption 4% Temperature Cool (0) Movement Walking (120) Location -10/Mines Parts ------- > --- POWER (1) -------- (None) > --- PROPULSION (2) --- Aluminum Leg > --- UTILITY (2) ------ Small Storage Unit > --- WEAPON (2) ------- (None) > --- INVENTORY (6) ---- Signal Interpreter ECM Suite Peak State ------------ > --- POWER ------------ Ion Engine > --- PROPULSION ------- Aluminum Leg Aluminum Leg > --- UTILITY ---------- Small Storage Unit Targeting Computer > --- WEAPON ----------- Small Laser Small Laser > --- INVENTORY -------- Ion Engine Light Treads Light Treads Assault Rifle [Rating: 7] Favorites ----------- Power Ion Engine Engine Ion Engine Propulsion Aluminum Leg Leg Aluminum Leg Utility Small Storage Unit Storage Small Storage Unit Processor Targeting Computer Protection Core Shielding Weapon Assault Rifle Energy Gun Medium Laser Ballistic Gun Assault Rifle Ballistic Cannon Light Cannon Launcher Grenade Launcher Build | -11 -10 -10 ------- Run | Scr Mat Min Slots Evolved . | . . . Power . | . . . Propulsion . | . . . Utility . | . . . Weapon . | . . . Parts Attached 27 | 6 14 7 Power 2 | 1 1 . Engine 2 | 1 1 . Core . | . . . Reactor . | . . . Propulsion 13 | 2 6 5 Treads . | . . . Leg 13 | 2 6 5 Wheel . | . . . Hover . | . . . Flight . | . . . Utility 4 | 1 2 1 Device . | . . . Storage 2 | 1 1 . Processor 1 | . 1 . Hackware . | . . . Protection 1 | . . 1 Artifact . | . . . Weapon 8 | 2 5 1 Energy Gun 3 | 2 1 . Energy Cannon . | . . . Ballistic Gun 3 | . 3 . Ballistic Cannon 1 | . 1 . Launcher 1 | . . 1 Special Weapon . | . . . Impact Weapon . | . . . Slashing Weapon . | . . . Piercing Weapon . | . . . Special Melee Weapon . | . . . Unidentified Prototypes . | . . . Parts Lost 12 | . 3 9 Power 1 | . . 1 Propulsion 3 | . . 3 Utility 2 | . . 2 Weapon 6 | . 3 3 Highest Loss Streak 9 | . 2 9 Average Slot Usage (%) 96 | . 98 91 Engine 13 | . 14 10 Leg 26 | . 27 26 Storage 14 | . 14 14 Processor 13 | . 13 11 Energy Gun 8 | . 8 10 Ballistic Gun 11 | . 14 . Ballistic Cannon 6 | . 4 13 Naked Turns . | . . . Heaviest Build 14 | 11 14 14 Greatest Support 20 | 20 20 20 Greatest Overweight (x) 2 | 1 1 2 Average Overweight (x) . | . . . Largest Inventory Capacity 6 | 6 6 6 Average Capacity 5 | 5 6 6 Most Carried 6 | 4 6 6 Average Carried 4 | 2 4 5 Final Capacity 6 | 6 6 6 Final Carried 6 | 4 6 2 Class Distribution -------------------- 100% | Mutant Dominant Class ---------------- Mutant | -10/Materials Mutant | -10/Mines Resources | -11 -10 -10 ----------- Run | Scr Mat Min Matter Collected 625 | 200 346 79 Remotely . | . . . Salvage Created 481 | . 402 79 Parts 30 | . 30 . Haulers Intercepted . | . . . Recyclers Shooed 1 | . 1 . Parts Field Recycled . | . . . Retrieved Matter . | . . . Parts Self-Destructed . | . . . Prevented . | . . . Kills | -11 -10 -10 ------- Run | Scr Mat Min Combat Hostiles Destroyed 18 | . 10 8 Guns 11 | . 9 2 Cannons 5 | . 1 4 AOE 2 | . . 2 Classes Destroyed 7 | . 6 1 Worker 1 | . 1 . Tunneler 1 | . 1 . Operator 1 | . 1 . Watcher 2 | . 2 . Swarmer 5 | . 5 . Grunt 5 | . 5 . Assembled 8 | . . 8 Best Kill Streak 5 | . 5 5 Combat Bots Only 5 | . 3 5 Max Kills in Single Turn 2 | . 1 2 Gunslinging . | . . . Exploded 2 | . . 2 Melee . | . . . Uniques/NPCs Destroyed . | . . . Combat | -11 -10 -10 -------- Run | Scr Mat Min Damage Taken 1588 | . 581 1007 Core 252 | . 19 233 Absorbed by Shields . | . . . Core Remaining (%) 100 | 100 . . Volleys Fired 65 | . 45 20 Largest 2 | . 2 2 Hottest 85 | . 85 85 Shots Fired 115 | . 85 30 Gun 90 | . 80 10 Cannon 24 | . 5 19 Launcher 1 | . . 1 Special . | . . . Kinetic 80 | . 61 19 Thermal 34 | . 24 10 Explosive 1 | . . 1 Electromagnetic . | . . . Robot Hit Streak 9 | . 8 9 Robot Miss Streak 4 | . 3 4 Penetration Max . | . . . Secondary Targets . | . . . Shots Hit Robots 72 | . 54 18 Core Hits 35 | . 21 14 Critical Hits . | . . . Critical Kills . | . . . Critical Parts Destroyed . | . . . Melee Attacks . | . . . Impact . | . . . Slashing . | . . . Piercing . | . . . Sneak Attacks . | . . . Combat Hostiles . | . . . Follow-up Attacks . | . . . Damage Inflicted 1064 | . 672 392 Guns 725 | . 615 110 Cannons 269 | . 57 212 Explosions 70 | . . 70 Melee . | . . . Ramming . | . . . Kinetic 715 | . 503 212 Thermal 279 | . 169 110 Explosive 70 | . . 70 Electromagnetic . | . . . Impact . | . . . Slashing . | . . . Piercing . | . . . Highest Corruption 4 | . . 4 Average Corruption 3 | . . 3 Corruption Purged . | . . . Effects 2 | . . 2 Matter Fused 1 | . . 1 Heat Flow Errors 1 | . . 1 Overload Shots . | . . . Overflow Damage . | . . . Projectiles . | . . . Explosions . | . . . Melee . | . . . Knockbacks 4 | . . 4 Impact . | . . . Kinetic 4 | . . 4 Secondary . | . . . Self-Inflicted Damage 28 | . . 28 Shots 1 | . . 1 Rammed . | . . . Targets Rammed 1 | . 1 . Kicked 1 | . 1 . Crushed . | . . . Highest Temperature 247 | . 120 247 Average Temperature 42 | . 35 50 Received Heat Transfer 285 | . 279 6 Siege Activations . | . . . Robots Corrupted . | . . . Combat Hostiles . | . . . Parts Fried . | . . . Impact Corruptions . | . . . Robots Melted . | . . . Combat Hostiles . | . . . Parts Melted . | . . . Heat Transferred 756 | . 423 333 Parts Sabotaged . | . . . Parts Stolen . | . . . Parts Stripped . | . . . Power Chain Reactions . | . . . Missiles Intercepted . | . . . Alert | -11 -10 -10 ------- Run | Scr Mat Min Peak Influence 112 | . 112 112 Average Influence 66 | . 65 83 Maximum Alert Level . | . . . Low Security (%) 100 | 100 100 100 Level 1 . | . . . Level 2 . | . . . Level 3 . | . . . Level 4 . | . . . Level 5 . | . . . High Security . | . . . Max Security . | . . . Squads Dispatched 1 | . 1 . Investigation . | . . . Extermination . | . . . Reinforcement 1 | . 1 . Assault . | . . . Garrison . | . . . Intercept . | . . . Construction Impeded . | . . . Haulers Reinforced . | . . . Stealth | -11 -10 -10 --------- Run | Scr Mat Min Distress Signals 1 | . 1 . Communications Jammed . | . . . Distress Signals . | . . . Times Spotted 47 | . 23 24 Peak Tracking Total 7 | . 6 7 Tactical Retreats 4 | . 1 3 Traps | -11 -10 -10 ------- Run | Scr Mat Min Traps Triggered 2 | . 2 . Indirectly . | . . . Trap Hack Attempts . | . . . Triggered . | . . . Disarmed . | . . . Reprogrammed . | . . . Reused . | . . . Traps Extracted . | . . . Installed . | . . . Triggered . | . . . Machines | -11 -10 -10 ---------- Run | Scr Mat Min Machines Disabled . | . . . Max in Single Turn . | . . . Machines Sabotaged . | . . . Garrisons Compromised . | . . . Overloaded Fab Kills . | . . . Fab Network Shutdowns . | . . . Hacking | -11 -10 -10 --------- Run | Scr Mat Min Machines Accessed 4 | . 4 . Terminals 2 | . 2 . Fabricators . | . . . Repair Stations 1 | . 1 . Recycling Units 1 | . 1 . Scanalyzers . | . . . Garrison Access . | . . . Total Hacks 16 | . 16 . Successful 10 | . 10 . Failed 6 | . 6 . Catastrophic . | . . . Database Lockouts . | . . . Manual . | . . . Terminals 6 | . 6 . Fabricators . | . . . Repair Stations 8 | . 8 . Recycling Units 2 | . 2 . Scanalyzers . | . . . Garrison Access . | . . . Terminal Hacks 4 | . 4 . Prototype ID Bank 1 | . 1 . Alert Level 1 | . 1 . Dispatch Records 1 | . 1 . Zone Layout 1 | . 1 . Fabricator Hacks . | . . . Repair Station Hacks 4 | . 4 . Scan Component 2 | . 2 . Repair 2 | . 2 . Recycling Unit Hacks 2 | . 2 . Process 1 | . 1 . Report Inventory 1 | . 1 . Scanalyzer . | . . . Garrison Access Hacks . | . . . Unauthorized Hacks . | . . . Terminals . | . . . Fabricators . | . . . Repair Stations . | . . . Recycling Units . | . . . Scanalyzers . | . . . Garrison Access . | . . . Data Cores Recovered . | . . . Used . | . . . Hacking Detections 1 | . 1 . Full Trace Events . | . . . Feedback Events . | . . . Feedback Blocked . | . . . Robot Schematics Acquired . | . . . Robots Built . | . . . Matter . | . . . Time . | . . . Total Robot Build Rating . | . . . Part Schematics Acquired . | . . . Parts Built . | . . . Matter . | . . . Time . | . . . Total Part Build Rating . | . . . Parts Repaired 2 | . 2 . Time 52 | . 52 . Parts Recycled . | . . . Recycled Matter 125 | . 125 . Retrieved Matter . | . . . Retrieved Components . | . . . Parts Scanalyzed . | . . . Part Schematics Acquired . | . . . Parts Damaged . | . . . Bothacking | -11 -10 -10 ------------ Run | Scr Mat Min Used RIF Installer . | . . . Robots Hacked . | . . . Non-combat . | . . . Combat . | . . . Robot Hacks Applied . | . . . Relay Couplers Released . | . . . Robots Rewired . | . . . Allies Hacked . | . . . Hacks Repelled . | . . . Allies | -11 -10 -10 -------- Run | Scr Mat Min Total Allies 3 | . . 3 Largest Group 3 | . . 3 Highest-Rated Group 40 | . . 40 Highest-Rated Ally 16 | . . 16 Total Orders . | . . . Ally Attacks 28 | . . 28 Total Damage 269 | . . 269 Kills 7 | . . 7 Allies Corrupted . | . . . Allies Melted . | . . . Intel | -11 -10 -10 ------- Run | Scr Mat Min Robot Analysis Total . | . . . Derelict Logs Recovered 1 | . . 1 Drone Launches . | . . . Drone Recoveries . | . . . Exploration | -11 -10 -10 ------------- Run | Scr Mat Min Turns Passed 1508 | 70 1112 326 Spaces Moved 996 | 51 726 219 Core 18 | 11 . 7 Treads . | . . . Legs 978 | 40 726 212 Wheels . | . . . Hover . | . . . Flight . | . . . Fastest Speed 50 | 50 120 100 Average Speed 119 | 108 120 120 Slowest Speed 150 | 150 150 150 Overloaded Moves . | . . . Propulsion Burnouts . | . . . Robots Hopped . | . . . Cave-ins Triggered . | . . . Exploration Rate (%) 44 | 4 81 47 Regions Visited 2 Branch Regions 1 Pre-discovered Areas 1 | . . 1 Known Exits Taken . | . . . Unknown Exits Taken 2 | 1 1 . Scrap Searched 1 | . . 1 Spaces Dug . | . . . Terrain Destroyed 12 | . . 12 Melee . | . . . Projectile . | . . . AOE 12 | . . 12 Actions | -11 -10 -10 --------- Run | Scr Mat Min Total 1197 | 65 880 252 Wait 77 | . 74 3 Move 994 | 50 725 219 Hop . | . . . Pick Up 25 | 9 15 1 Fast Attach 2 | 1 1 . Attach 16 | 5 7 4 Detach . | . . . Swap 9 | . 6 3 Drop 8 | . 6 2 Fire 65 | . 45 20 Melee . | . . . Ram . | . . . Kick 1 | . 1 . Crush . | . . . Escape Stasis . | . . . Rewire . | . . . Trap . | . . . Miscellaneous . | . . . Route ------- -11/Scrapyard -10/Materials (discovered 5 exits: [*Mat x3] / [*Min x2]) -10/Mines (discovered 1 exit: [*Mat]) History --------- Turn | Location | Event 2 | -11/Scrapyard | Met Revision 17 6 | -11/Scrapyard | Discovered new exit (range 15) 71 | -11/Scrapyard | Entered Materials 145 | -10/Materials | Discovered new exit (range 8) 178 | -10/Materials | Discovered new exit (range 9) 316 | -10/Materials | Build established: Mutant 415 | -10/Materials | Repaired Aluminum Leg 443 | -10/Materials | Repaired Aluminum Leg 583 | -10/Materials | Discovered new exit (range 16) 721 | -10/Materials | Discovered new exit (range 5) 862 | -10/Materials | Discovered new exit (range 9) 1183 | -10/Materials | Entered Mines 1203 | -10/Mines | Assisted by bots powering up and referring to "LRC-V3" 1308 | -10/Mines | Assembled infested the area 1381 | -10/Mines | Learned location of Zion (-7) 1384 | -10/Mines | Discovered new exit (range 6) 1497 | -10/Mines | Core integrity fell below 50% 1505 | -10/Mines | Core integrity fell below 20% 1509 | -10/Mines | Destroyed by as-74731 with Assembled Heavy Rifle Last Messages --------------- 01442_ Targeting Computer destroyed. 01442_ System corrupted by crushing effect (+1). 01443_ System corrupted: Matter fused (-5). 01451_ Knocked back. 01459_ as-70890 destroyed. 01459_ as-77075 destroyed. 01462_ Aluminum Leg destroyed. 01466_ Grenade Launcher destroyed. 01470_ System corrupted: Heat flow error (+271). 01478_ as-28753 knocked back. 01482_ as-93053 knocked back. 01484_ as-28753 destroyed. 01488_ R-06 Scavenger destroyed. 01489_ Critical hit. 01489_ Aluminum Leg destroyed. 01493_ Lgt. Cannon destroyed. 01495_ Acquired 7 matter. 01503_ Core Shielding destroyed. 01505_ U-05 Engineer destroyed. 01508_ Aluminum Leg destroyed. Map ----- +----------------------------------------------------+ | ?????????????????????????????????????????????????? | | ?????????????????????????????????????????????????? | | ???????????###???????????????????????????????????? | | ??????????## ##?????????????????????????????????? | | ??????????# ###?????????????#????????????????? | | ??????????# ##???????????? ????????????????? | | ???????????# #????????????=????????????????? | | ????????????# #????????????!????????????????? | | ?????????????# #????????????%????????????????? | | ?????????????## ##?????????##=????????????????? | | ??????????????## ##???????? %=#???????????????? | | ???????????????# ##??????? !%=???????????????? | | ??????????????##] ##???????"<%???????????????? | | ????????####?## ##?????? "##??????????????? | | ????????# ## #?????? #??????????????? | | ????????# ### % ##????? #??????????????? | | ????????# ##?##a * #?????# %#??????????????? | | ????????# ##???#%=|%! #?????#%%#??????????????? | | ????????## ##????#a =! #######%=#??????????????? | | ?????????###??????# =! ! =! !%#????????###???? | | ??????????????????# %= % %%%% *#??????## ##??? | | ??????????????????## *##########??????# #??? | | ??????????????????## #??####????????## #????? | | ?????????????????## #### ########?# ##????? | | ?????????????????# ## # ### %##????? | | ?????????????????# @aa ## | | ?????????????????#### a !%* != | | ????????????????????# # #! ## *%= | | ????????????????????# ################## == | | ????????????????????# #????????????????##= ## # | | ????????????????##### #?????????????????#% #? ### | | ????????????????# #?????????????????# #??#?? | | ????????????????# #?????????????????# #????? | | ????????????????# #####?????????????????# #????? | | ????????????##### #?????????????????????? ????? | | ???????????## ## #?????????????????????? #????? | | ??????????## #?????????????????????? #????? | | ??????????# #?????????????????????? #????? | | ??????????# #?????????????????????? #????? | | ??????????# ##?????????????????????? #????? | | ??????????# ## #??????????????????????? #????? | | ?????????## ### #??????####????????????? ????? | | ?????????# #?# #??##### ##?????????#?# ????? | | ?????????# ### #### #???????? ## ????? | | ?????????# # ##??????? ?????? | | ?????????# % # ##????? #??????? | | ?????????# * ### ## ## ##???# #???????? | | ????????# #?# ######### ##?# #???????? | | ???????# ##?# #????##### ## #????????? | | ???????# ##??# #????# #????????? | +----------------------------------------------------+ Best States ------------- Heat Dissipation 25 Energy Generation 10 Energy Capacity 250 Matter Stores 300 Matter Capacity 300 Sight Range 16 Terrain Scan Density 10 Core Shielding 20 Evasion (%) 50 Targeting Accuracy 5 Item Schematics ----------------- None Robot Schematics ------------------ None Fabricated ------------ Nothing Alien Tech Used ----------------- None Achievements -------------- None Challenges ------------ None Game ------ Seed SubatomicLightSheargun Manual? 0 Play Time 00:22:00 Cumulative 5.0 hours Start 2019.12.21 @ 22:42:22 End 2019.12.21 @ 23:02:35 Sessions 1 Manual Loads 0 Difficulty Rogue Special Mode None Game No. 15 Rogue 15 Adventurer 0 Explorer 0 Win Type - Total 0 Types 0/0/0/0/0/0/0 Lore% 3 Gallery% 7 Achievement% 6 Wizard Run 0 Options --------- ASCII 0 Keyboard 0 Movement Mouse Keybinds 0 Fullscreen 1 Font 18/X11 Map View 76x50 Tactical HUD 1 Map Filters NONE Filters NONE Steam 1 RUN: bc673a73-039e-44c5-a209-3cbb5019607e